[Event "44th Chess Olympiad Open 2022"]
[Site "Chennai"]
[Date "2022.08.09"]
[Round "11.24"]
[White "Westerberg, Jonathan"]
[Black "Gong, Qianyun"]
[Result "1-0"]
[ECO "E14"]
[WhiteElo "2476"]
[BlackElo "2275"]
[Annotator "RC"]
[PlyCount "71"]
[EventDate "2022.07.29"]
[EventType "team-tourn"]
[EventCountry "IND"]
[SourceTitle "playchess.com"]
[Source "ChessBase"]
[SourceQuality "1"]
[WhiteTeam "Sweden"]
[BlackTeam "SGP"]
[WhiteTeamCountry "SWE"]
[TimeControl "40/5400+30:1800+30"]

1. d4 {[%emt 0:00:05]} Nf6 {[%emt 0:00:19]} 2. Nf3 {[%emt 0:00:07]} e6 {[%emt 0:00:50]} 3. e3 {[%emt 0:00:09]} b6 {[%emt 0:00:40]} 4. Bd3 {[%emt 0:00:14]} Bb7 {[%emt 0:00:11]} 5. O-O {[%emt 0:00:13]} c5 {[%emt 0:02:00]} 6. c4 {[%emt 0:00:18]} Be7 {[%emt 0:01:11]} 7. Nc3 {[%emt 0:00:06]} cxd4 {[%emt 0:07:20]} 8. exd4 {[%emt 0:00:07]} d5 {[%emt 0:00:09]} 9. cxd5 {[%emt 0:01:14]} exd5 {[%emt 0:13:10]} 10. Ne5 {[%emt 0:17:13]} O-O {[%emt 0:03:44]} 11. Re1 {[%emt 0:17:23]} Nc6 {[%emt 0:10:48]} 12. Ba6 {[%emt 0:04:12]} Nxe5 {[%emt 0:07:07]} 13. Bxb7 {[%emt 0:01:08]} Ng6 {[%emt 0:00:36]} 14. Bxa8 {[%emt 0:00:06]} Qxa8 {[%emt 0:00:03]} 15. h4 {[%emt 0:01:36]} Re8 {[%emt 0:03:41]} 16. h5 {[%emt 0:00:31]} Nf8 {[%emt 0:00:07]} 17. h6 {[%emt 0:03:07]} Ne6 {[%emt 0:14:56]} 18. hxg7 {[%emt 0:01:29]} Qd8 {[%emt 0:00:28]} 19. Be3 {[%emt 0:01:36]} Bd6 {[%emt 0:00:42]} 20. Qf3 {[%emt 0:00:31]} Bb8 {[%emt 0:00:46]} 21. g3 {[%emt 0:02:55]} Kxg7 {[%emt 0:01:59]} 22. Kg2 {[%emt 0:02:41]} Rg8 {[%emt 0:03:52]} 23. Rh1 {[%emt 0:05:15]} Kf8 {[%emt 0:01:36]} 24. Rh6 {[%emt 0:00:25]} Rg6 {[%emt 0:00:10]} 25. Rah1 {[%emt 0:02:57]} Kg7 {[%emt 0:03:32]} 26. Rxg6+ {[%emt 0:03:50]} hxg6 {[%emt 0:00:15]} 27. g4 {[%emt 0:01:46]} g5 {[%emt 0:06:42]} 28. Qh3 {[%emt 0:02:18]} Ng8 {[%emt 0:00:13]} 29. Qh7+ {[%emt 0:00:52]} Kf8 {[%emt 0:00:06]} 30. Qf5 {[%emt 0:00:34]} Bf4 {[%emt 0:03:03]} 31. Nxd5 {[%emt 0:04:14]} Qa8 {[%emt 0:05:19]} 32. Qe4 {[%emt 0:01:47]} Qc8 {[%emt 0:03:14]} 33. Rh8 {[%emt 0:04:09]} Qd8 {[%emt 0:01:13]} 34. Nxf4 {[%emt 0:02:40]} gxf4 {[%emt 0:00:13]} 35. Bxf4 {[%emt 0:00:48]} Qf6 {[%emt 0:04:41]} 36. Qa8+ {[%emt 0:02:24]} 1-0

[Event "44th Chess Olympiad Open 2022"]
[Site "Chennai"]
[Date "2022.08.09"]
[Round "11.24"]
[White "Siddharth, Jagadeesh"]
[Black "Hillarp Persson, Tiger"]
[Result "0-1"]
[ECO "E73"]
[WhiteElo "2426"]
[BlackElo "2516"]
[Annotator "RC"]
[PlyCount "108"]
[EventDate "2022.07.29"]
[EventType "team-tourn"]
[EventCountry "IND"]
[SourceTitle "playchess.com"]
[Source "ChessBase"]
[SourceQuality "1"]
[WhiteTeam "SGP"]
[BlackTeam "Sweden"]
[BlackTeamCountry "SWE"]
[TimeControl "40/5400+30:1800+30"]

1. d4 {[%emt 0:00:41]} Nf6 {[%emt 0:01:29]} 2. c4 {[%emt 0:00:22]} g6 {[%emt 0:01:22]} 3. Nc3 {[%emt 0:00:27]} Bg7 {[%emt 0:00:06]} 4. e4 {[%emt 0:00:17]} d6 {[%emt 0:00:07]} 5. Be2 {[%emt 0:00:49]} O-O {[%emt 0:00:08]} 6. Be3 {[%emt 0:00:08]} c5 {[%emt 0:03:30]} 7. d5 {[%emt 0:00:39]} e6 {[%emt 0:00:09]} 8. Nf3 {[%emt 0:00:26]} exd5 {[%emt 0:00:08]} 9. cxd5 {[%emt 0:00:18]} Re8 {[%emt 0:06:07]} 10. Nd2 {[%emt 0:00:17]} a6 {[%emt 0:14:25]} 11. a4 {[%emt 0:01:52]} b6 {[%emt 0:01:51]} 12. O-O {[%emt 0:03:26]} Ra7 {[%emt 0:00:04]} 13. h3 {[%emt 0:03:19]} Rae7 {[%emt 0:00:13]} 14. Qc2 {[%emt 0:05:59]} Nbd7 {[%emt 0:00:55]} 15. Rab1 {[%emt 0:06:44]} h5 {[%emt 0:10:58]} 16. Bg5 {[%emt 0:06:45]} Re5 {[%emt 0:07:08]} 17. h4 {[%emt 0:03:26]} Rxg5 {[%emt 0:07:44]} 18. hxg5 {[%emt 0:04:16]} Ng4 {[%emt 0:00:07]} 19. Nf3 {[%emt 0:00:10]} Nf8 {[%emt 0:07:33]} 20. Qd2 {[%emt 0:11:36]} Nh7 {[%emt 0:00:07]} 21. g3 {[%emt 0:00:35]} f6 {[%emt 0:14:08]} 22. gxf6 {[%emt 0:04:13]} Qxf6 {[%emt 0:00:38]} 23. Rbe1 {[%emt 0:02:53]} g5 {[%emt 0:11:58]} 24. Bd1 {[%emt 0:07:50]} Qh6 {[%emt 0:02:18]} 25. Kg2 {[%emt 0:04:59]} h4 {[%emt 0:02:51]} 26. gxh4 {[%emt 0:03:26]} Ne5 {[%emt 0:00:09]} 27. Nxe5 {[%emt 0:01:01]} Bxe5 {[%emt 0:00:10]} 28. Rh1 {[%emt 0:01:34]} Bf4 {[%emt 0:00:08]} 29. Qd3 {[%emt 0:01:19]} gxh4 {[%emt 0:02:59]} 30. Reg1 {[%emt 0:00:12]} Nf6 {[%emt 0:00:51]} 31. Kf1+ {[%emt 0:02:17]} Kf7 {[%emt 0:00:06]} 32. Bc2 {[%emt 0:07:36]} Be5 {[%emt 0:00:07]} 33. Qe3 {[%emt 0:03:24]} Qxe3 {[%emt 0:00:45]} 34. fxe3 {[%emt 0:00:01]} h3 {[%emt 0:00:15]} 35. Ke2 {[%emt 0:01:45]} Rh8 {[%emt 0:03:31]} 36. Rf1 {[%emt 0:00:51]} Ke7 {[%emt 0:00:08]} 37. Kd2 {[%emt 0:00:59]} Rh4 {[%emt 0:02:56]} 38. Ne2 {[%emt 0:00:41]} Nh5 {[%emt 0:00:33]} 39. Rf2 {[%emt 0:06:52]} Ng3 {[%emt 0:00:29]} 40. Nxg3 {[%emt 0:02:56]} Bxg3 {[%emt 0:00:07]} 41. Rf3 {[%emt 0:03:20]} Be5 {[%emt 0:00:54]} 42. Bd1 {[%emt 0:00:11]} Bxb2 {[%emt 0:06:26]} 43. Rhf1 {[%emt 0:03:58]} Rh7 {[%emt 0:01:37]} 44. Rf8 {[%emt 0:00:06]} Bd7 {[%emt 0:00:29]} 45. Bh5 {[%emt 0:00:02]} h2 {[%emt 0:00:36]} 46. R1f7+ {[%emt 0:01:09]} Rxf7 {[%emt 0:00:10]} 47. Rxf7+ {[%emt 0:00:04]} Kd8 {[%emt 0:00:10]} 48. Bf3 {[%emt 0:01:10]} Bxa4 {[%emt 0:04:06]} 49. Rh7 {[%emt 0:00:50]} Be5 {[%emt 0:00:00]} 50. Rb7 {[%emt 0:04:31]} b5 {[%emt 0:00:59]} 51. Rb6 {[%emt 0:00:04]} b4 {[%emt 0:00:58]} 52. Rxa6 {[%emt 0:00:08]} Bb5 {[%emt 0:00:21]} 53. Rb6 {[%emt 0:00:28]} Bc4 {[%emt 0:00:18]} 54. Kc2 {[%emt 0:00:27]} Kc7 {[%emt 0:00:11]} 0-1

[Event "44th Chess Olympiad Open 2022"]
[Site "Chennai"]
[Date "2022.08.09"]
[Round "11.24"]
[White "Wong, Zhenyong Jayden"]
[Black "Berg, Emanuel"]
[Result "1/2-1/2"]
[ECO "E62"]
[WhiteElo "2163"]
[BlackElo "2533"]
[Annotator "RC"]
[PlyCount "75"]
[EventDate "2022.07.29"]
[EventType "team-tourn"]
[EventCountry "IND"]
[SourceTitle "playchess.com"]
[Source "ChessBase"]
[SourceQuality "1"]
[WhiteTeam "SGP"]
[BlackTeam "Sweden"]
[BlackTeamCountry "SWE"]
[TimeControl "40/5400+30:1800+30"]

1. d4 {[%emt 0:00:03]} Nf6 {[%emt 0:00:07]} 2. c4 {[%emt 0:00:04]} g6 {[%emt 0:00:04]} 3. g3 {[%emt 0:00:25]} Bg7 {[%emt 0:00:05]} 4. Bg2 {[%emt 0:00:03]} O-O {[%emt 0:00:10]} 5. Nc3 {[%emt 0:00:11]} d6 {[%emt 0:00:10]} 6. Nf3 {[%emt 0:00:07]} c6 {[%emt 0:00:08]} 7. e4 {[%emt 0:00:22]} Bg4 {[%emt 0:20:57]} 8. Be3 {[%emt 0:02:17]} Qa5 {[%emt 0:03:42]} 9. h3 {[%emt 0:01:47]} Bxf3 {[%emt 0:01:16]} 10. Bxf3 {[%emt 0:00:33]} e5 {[%emt 0:01:33]} 11. d5 {[%emt 0:01:15]} cxd5 {[%emt 0:10:54]} 12. cxd5 {[%emt 0:00:32]} Nbd7 {[%emt 0:02:09]} 13. g4 {[%emt 0:06:27]} Rfc8 {[%emt 0:00:57]} 14. g5 {[%emt 0:01:48]} Ne8 {[%emt 0:03:00]} 15. Bg4 {[%emt 0:03:11]} Qd8 {[%emt 0:01:04]} 16. h4 {[%emt 0:04:34]} a6 {[%emt 0:02:34]} 17. Qf3 {[%emt 0:07:17]} Rc4 {[%emt 0:02:18]} 18. h5 {[%emt 0:16:17]} Nc5 {[%emt 0:03:30]} 19. hxg6 {[%emt 0:02:48]} hxg6 {[%emt 0:00:20]} 20. Kf1 {[%emt 0:18:56]} b5 {[%emt 0:02:08]} 21. Kg2 {[%emt 0:06:32]} b4 {[%emt 0:14:37]} 22. Ne2 {[%emt 0:00:33]} Nxe4 {[%emt 0:07:14]} 23. b3 {[%emt 0:01:53]} Nxg5 {[%emt 0:03:12]} 24. Bxg5 {[%emt 0:00:18]} Qxg5 {[%emt 0:00:11]} 25. bxc4 {[%emt 0:00:05]} f5 {[%emt 0:01:37]} 26. Rab1 {[%emt 0:03:41]} Nf6 {[%emt 0:03:12]} 27. Rxb4 {[%emt 0:00:43]} Nxg4 {[%emt 0:00:19]} 28. Kf1 {[%emt 0:07:50]} Qd2 {[%emt 0:05:47]} 29. Qb3 {[%emt 0:01:33]} e4 {[%emt 0:01:49]} 30. Rb8+ {[%emt 0:04:05]} Rxb8 {[%emt 0:00:13]} 31. Qxb8+ {[%emt 0:00:02]} Bf8 {[%emt 0:00:42]} 32. Rh8+ {[%emt 0:04:48]} Kxh8 {[%emt 0:00:10]} 33. Qxf8+ {[%emt 0:00:03]} Kh7 {[%emt 0:00:08]} 34. Qe7+ {[%emt 0:00:03]} Kg8 {[%emt 0:00:41]} 35. Qe8+ {[%emt 0:00:07]} Kg7 {[%emt 0:00:07]} 36. Qe7+ {[%emt 0:00:02]} Kh6 {[%emt 0:00:19]} 37. Qh4+ {[%emt 0:00:07]} Kg7 {[%emt 0:00:04]} 38. Qe7+ {[%emt 0:00:04]} 1/2-1/2

[Event "44th Chess Olympiad Open 2022"]
[Site "Chennai"]
[Date "2022.08.09"]
[Round "11.25"]
[White "Stefansson, Hannes"]
[Black "Stoyanov, Tsvetan"]
[Result "1-0"]
[ECO "D24"]
[WhiteElo "2541"]
[BlackElo "2450"]
[Annotator "RC"]
[PlyCount "227"]
[EventDate "2022.07.29"]
[EventType "team-tourn"]
[EventCountry "IND"]
[SourceTitle "playchess.com"]
[Source "ChessBase"]
[SourceQuality "1"]
[WhiteTeam "Iceland"]
[BlackTeam "Bulgaria"]
[WhiteTeamCountry "ISL"]
[BlackTeamCountry "BUL"]
[TimeControl "40/5400+30:1800+30"]

1. d4 {[%emt 0:00:10]} Nf6 {[%emt 0:00:33]} 2. c4 {[%emt 0:00:12]} e6 {[%emt 0:00:03]} 3. Nf3 {[%emt 0:00:21]} d5 {[%emt 0:00:06]} 4. Nc3 {[%emt 0:00:30]} dxc4 {[%emt 0:00:06]} 5. e4 {[%emt 0:00:30]} b5 {[%emt 0:00:04]} 6. e5 {[%emt 0:00:49]} Nd5 {[%emt 0:00:05]} 7. Nxb5 {[%emt 0:00:42]} Nb6 {[%emt 0:00:05]} 8. Be2 {[%emt 0:00:35]} Nc6 {[%emt 0:00:06]} 9. Be3 {[%emt 0:01:00]} Be7 {[%emt 0:00:30]} 10. a3 {[%emt 0:00:43]} Qd7 {[%emt 0:06:49]} 11. Nc3 {[%emt 0:02:26]} Bb7 {[%emt 0:08:31]} 12. Qc2 {[%emt 0:00:23]} Na5 {[%emt 0:00:54]} 13. Rd1 {[%emt 0:00:16]} Rb8 {[%emt 0:02:44]} 14. h4 {[%emt 0:01:24]} Bc6 {[%emt 0:14:56]} 15. h5 {[%emt 0:03:24]} h6 {[%emt 0:03:47]} 16. O-O {[%emt 0:15:28]} O-O {[%emt 0:09:10]} 17. Nd2 {[%emt 0:04:56]} Rfd8 {[%emt 0:09:26]} 18. Rb1 {[%emt 0:08:33]} Qc8 {[%emt 0:06:30]} 19. f4 {[%emt 0:03:42]} Nb3 {[%emt 0:12:09]} 20. Nxb3 {[%emt 0:02:42]} cxb3 {[%emt 0:00:01]} 21. Qd2 {[%emt 0:04:41]} Nd5 {[%emt 0:04:21]} 22. Bd3 {[%emt 0:03:32]} Nxe3 {[%emt 0:01:39]} 23. Qxe3 {[%emt 0:00:58]} Qb7 {[%emt 0:02:56]} 24. Be4 {[%emt 0:12:16]} Bxe4 {[%emt 0:01:34]} 25. Nxe4 {[%emt 0:00:06]} Qb6 {[%emt 0:05:27]} 26. Rbd1 {[%emt 0:03:48]} Rd7 {[%emt 0:00:44]} 27. Rd3 {[%emt 0:00:46]} a5 {[%emt 0:02:29]} 28. Rfd1 {[%emt 0:02:45]} a4 {[%emt 0:01:51]} 29. Nc3 {[%emt 0:00:39]} Qa6 {[%emt 0:04:03]} 30. d5 {[%emt 0:04:18]} Rbd8 {[%emt 0:00:12]} 31. Kh2 {[%emt 0:02:36]} Bf8 {[%emt 0:01:50]} 32. Qe4 {[%emt 0:01:00]} Qb7 {[%emt 0:02:13]} 33. Kh3 {[%emt 0:04:19]} exd5 {[%emt 0:00:14]} 34. Nxd5 {[%emt 0:00:53]} c6 {[%emt 0:00:37]} 35. Nc3 {[%emt 0:00:15]} Rxd3+ {[%emt 0:00:30]} 36. Rxd3 {[%emt 0:00:07]} Qc8+ {[%emt 0:00:30]} 37. Kg3 {[%emt 0:01:32]} Rxd3+ {[%emt 0:00:41]} 38. Qxd3 {[%emt 0:00:06]} c5 {[%emt 0:00:24]} 39. Nxa4 {[%emt 0:06:20]} c4 {[%emt 0:00:34]} 40. Qe4 {[%emt 0:01:38]} c3 {[%emt 0:00:31]} 41. Nxc3 {[%emt 0:32:53]} Bxa3 {[%emt 0:02:05]} 42. Qe2 {[%emt 0:00:00]} Bb4 {[%emt 0:02:39]} 43. Ne4 {[%emt 0:00:00]} Qc2 {[%emt 0:09:45]} 44. Kf3 {[%emt 0:00:00]} Bc5 {[%emt 0:05:41]} 45. Qd2 {[%emt 0:00:00]} Bf8 {[%emt 0:04:54]} 46. f5 {[%emt 0:00:00]} Qc8 {[%emt 0:01:01]} 47. g4 {[%emt 0:00:00]} Qc4 {[%emt 0:02:20]} 48. Qe2 {[%emt 0:00:00]} Qd4 {[%emt 0:04:13]} 49. Nf2 {[%emt 0:00:00]} Qd5+ {[%emt 0:00:43]} 50. Qe4 {[%emt 0:00:00]} Qd2 {[%emt 0:00:36]} 51. Qe2 {[%emt 0:00:00]} Qd5+ {[%emt 0:00:25]} 52. Qe4 {[%emt 0:00:00]} Qd2 {[%emt 0:00:25]} 53. Nd3 {[%emt 0:00:00]} Qd1+ {[%emt 0:00:39]} 54. Qe2 {[%emt 0:00:00]} Qh1+ {[%emt 0:00:09]} 55. Ke3 {[%emt 0:00:00]} Bc5+ {[%emt 0:01:54]} 56. Kf4 {[%emt 0:00:00]} Be7 {[%emt 0:00:12]} 57. Ke3 {[%emt 0:00:00]} Qd5 {[%emt 0:00:30]} 58. Qf3 {[%emt 0:00:00]} Bg5+ {[%emt 0:00:04]} 59. Kf2 {[%emt 0:00:00]} Qd4+ {[%emt 0:00:31]} 60. Kf1 {[%emt 0:00:00]} Qc4 {[%emt 0:00:49]} 61. Qe2 {[%emt 0:00:00]} Qd5 {[%emt 0:00:37]} 62. Nf2 {[%emt 0:00:00]} Bh4 {[%emt 0:00:41]} 63. Qe4 {[%emt 0:00:00]} Qd2 {[%emt 0:00:36]} 64. Nd3 {[%emt 0:00:00]} Qd1+ {[%emt 0:00:29]} 65. Kg2 {[%emt 0:00:00]} Qc2+ {[%emt 0:00:12]} 66. Kf3 {[%emt 0:00:00]} Qd1+ {[%emt 0:00:21]} 67. Qe2 {[%emt 0:00:01]} Qh1+ {[%emt 0:00:02]} 68. Ke3 {[%emt 0:00:23]} Qd5 {[%emt 0:01:00]} 69. Kd2 {[%emt 0:01:20]} Qa5+ {[%emt 0:00:09]} 70. Ke3 {[%emt 0:00:23]} Qd5 {[%emt 0:00:25]} 71. Qf3 {[%emt 0:00:44]} Bg5+ {[%emt 0:00:02]} 72. Kf2 {[%emt 0:00:15]} Qd4+ {[%emt 0:00:17]} 73. Kg2 {[%emt 0:00:34]} Qc4 {[%emt 0:00:19]} 74. Qe2 {[%emt 0:00:23]} Qc2 {[%emt 0:01:08]} 75. Kf2 {[%emt 0:02:37]} Bh4+ {[%emt 0:01:07]} 76. Kf3 {[%emt 0:00:50]} Qb1 {[%emt 0:00:46]} 77. Ke4 {[%emt 0:00:45]} Qh1+ {[%emt 0:00:38]} 78. Kd4 {[%emt 0:00:09]} Qc6 {[%emt 0:00:19]} 79. Qe4 {[%emt 0:00:52]} Qa4+ {[%emt 0:00:11]} 80. Ke3 {[%emt 0:00:16]} Qa7+ {[%emt 0:01:03]} 81. Qd4 {[%emt 0:00:55]} Qb7 {[%emt 0:00:35]} 82. Kd2 {[%emt 0:00:59]} Qc6 {[%emt 0:00:31]} 83. Nc5 {[%emt 0:01:40]} Bg5+ {[%emt 0:00:18]} 84. Kd3 {[%emt 0:00:15]} Qf3+ {[%emt 0:00:37]} 85. Kc4 {[%emt 0:00:05]} Be3 {[%emt 0:00:28]} 86. Qe4 {[%emt 0:01:24]} Qe2+ {[%emt 0:00:34]} 87. Nd3 {[%emt 0:00:37]} Qc2+ {[%emt 0:00:13]} 88. Kb5 {[%emt 0:00:07]} Bg5 {[%emt 0:00:26]} 89. e6 {[%emt 0:00:40]} fxe6 {[%emt 0:00:40]} 90. fxe6 {[%emt 0:00:14]} Bf6 {[%emt 0:00:39]} 91. Qd5 {[%emt 0:00:23]} Kh7 {[%emt 0:00:27]} 92. Qe4+ {[%emt 0:02:18]} Kg8 {[%emt 0:00:32]} 93. Ka4 {[%emt 0:00:42]} Be7 {[%emt 0:00:33]} 94. Qd5 {[%emt 0:00:45]} Qd1 {[%emt 0:00:31]} 95. Qa8+ {[%emt 0:01:04]} Kh7 {[%emt 0:00:05]} 96. Qe4+ {[%emt 0:00:05]} Kg8 {[%emt 0:00:04]} 97. Qf5 {[%emt 0:00:38]} Bf6 {[%emt 0:00:14]} 98. Kb5 {[%emt 0:01:34]} Qc2 {[%emt 0:01:15]} 99. Qd5 {[%emt 0:00:26]} Kh7 {[%emt 0:00:24]} 100. Ka4 {[%emt 0:02:30]} Qd1 {[%emt 0:00:14]} 101. Qe4+ {[%emt 0:00:55]} Kg8 {[%emt 0:00:00]} 102. Kb5 {[%emt 0:00:50]} Qc2 {[%emt 0:00:46]} 103. Qa8+ {[%emt 0:00:51]} Kh7 {[%emt 0:00:00]} 104. Qd5 {[%emt 0:00:09]} Kh8 {[%emt 0:01:56]} 105. Qc4 {[%emt 0:00:34]} Qe2 {[%emt 0:00:29]} 106. Kb4 {[%emt 0:01:37]} Qd1 {[%emt 0:00:27]} 107. Kc5 {[%emt 0:00:19]} Be7+ {[%emt 0:00:35]} 108. Kc6 {[%emt 0:00:35]} Qf3+ {[%emt 0:00:12]} 109. Qd5 {[%emt 0:01:39]} Qf8 {[%emt 0:00:50]} 110. Kc7 {[%emt 0:01:36]} Bf6 {[%emt 0:00:26]} 111. Kb7 {[%emt 0:00:24]} Be7 {[%emt 0:00:33]} 112. Ne5 {[%emt 0:00:25]} Qf6 {[%emt 0:00:26]} 113. Ng6+ {[%emt 0:00:12]} Kg8 {[%emt 0:00:34]} 114. Qf5 {[%emt 0:00:32]} 1-0

[Event "44th Chess Olympiad Open 2022"]
[Site "Chennai"]
[Date "2022.08.09"]
[Round "11.25"]
[White "Petkov, Momchil"]
[Black "Gretarsson, Hjorvar Steinn"]
[Result "1-0"]
[ECO "B11"]
[WhiteElo "2510"]
[BlackElo "2563"]
[Annotator "RC"]
[PlyCount "185"]
[EventDate "2022.07.29"]
[EventType "team-tourn"]
[EventCountry "IND"]
[SourceTitle "playchess.com"]
[Source "ChessBase"]
[SourceQuality "1"]
[WhiteTeam "Bulgaria"]
[BlackTeam "Iceland"]
[WhiteTeamCountry "BUL"]
[BlackTeamCountry "ISL"]
[TimeControl "40/5400+30:1800+30"]

1. e4 {[%emt 0:00:10]} c6 {[%emt 0:00:39]} 2. Nc3 {[%emt 0:00:58]} d5 {[%emt 0:00:06]} 3. Nf3 {[%emt 0:00:05]} Bg4 {[%emt 0:00:15]} 4. Be2 {[%emt 0:00:06]} Nf6 {[%emt 0:01:00]} 5. h3 {[%emt 0:01:30]} Bxf3 {[%emt 0:01:22]} 6. Bxf3 {[%emt 0:00:05]} e5 {[%emt 0:04:39]} 7. O-O {[%emt 0:04:49]} d4 {[%emt 0:00:00]} 8. Nb1 {[%emt 0:08:25]} Bd6 {[%emt 0:05:35]} 9. d3 {[%emt 0:00:00]} c5 {[%emt 0:02:46]} 10. g3 {[%emt 0:04:44]} Nc6 {[%emt 0:01:37]} 11. Nd2 {[%emt 0:02:44]} b5 {[%emt 0:10:21]} 12. Bg2 {[%emt 0:07:03]} h5 {[%emt 0:13:38]} 13. a4 {[%emt 0:06:21]} a6 {[%emt 0:00:00]} 14. f4 {[%emt 0:07:47]} Nd7 {[%emt 0:05:49]} 15. Nf3 {[%emt 0:01:48]} Be7 {[%emt 0:12:27]} 16. Nxe5 {[%emt 0:04:23]} Ndxe5 {[%emt 0:00:00]} 17. fxe5 {[%emt 0:06:06]} Nxe5 {[%emt 0:00:00]} 18. Rf5 {[%emt 0:06:41]} Bd6 {[%emt 0:05:36]} 19. Bf4 {[%emt 0:09:53]} f6 {[%emt 0:06:53]} 20. Rxh5 {[%emt 0:00:00]} O-O {[%emt 0:01:08]} 21. Bxe5 {[%emt 0:00:00]} Bxe5 {[%emt 0:00:00]} 22. Qg4 {[%emt 0:00:00]} Qe8 {[%emt 0:07:27]} 23. axb5 {[%emt 0:09:03]} axb5 {[%emt 0:00:00]} 24. Rxa8 {[%emt 0:00:39]} Qxa8 {[%emt 0:00:00]} 25. Kh2 {[%emt 0:06:19]} Qe8 {[%emt 0:00:00]} 26. Qh4 {[%emt 0:00:00]} Kf7 {[%emt 0:00:00]} 27. Rh7 {[%emt 0:00:00]} Rg8 {[%emt 0:01:31]} 28. Qh5+ {[%emt 0:00:27]} Ke7 {[%emt 0:00:38]} 29. Qg4 {[%emt 0:00:18]} Qf7 {[%emt 0:01:04]} 30. h4 {[%emt 0:03:47]} Kd6 {[%emt 0:00:07]} 31. Bh3 {[%emt 0:00:00]} c4 {[%emt 0:04:29]} 32. h5 {[%emt 0:02:14]} cxd3 {[%emt 0:00:26]} 33. cxd3 {[%emt 0:00:00]} f5 {[%emt 0:00:35]} 34. Qxf5 {[%emt 0:06:14]} Qxf5 {[%emt 0:06:44]} 35. exf5 {[%emt 0:00:00]} b4 {[%emt 0:08:47]} 36. Bg4 {[%emt 0:00:00]} Bf6 {[%emt 0:01:56]} 37. h6 {[%emt 0:03:56]} gxh6 {[%emt 0:00:00]} 38. Rxh6 {[%emt 0:00:00]} Ke5 {[%emt 0:00:00]} 39. Kh3 {[%emt 0:04:51]} b3 {[%emt 0:01:26]} 40. Rh7 {[%emt 0:00:00]} Bg7 {[%emt 0:02:20]} 41. Bd1 {[%emt 0:04:23]} Kxf5 {[%emt 0:02:24]} 42. Rh5+ {[%emt 0:01:38]} Kf6 {[%emt 0:03:20]} 43. Rb5 {[%emt 0:02:28]} Bf8 {[%emt 0:00:00]} 44. Bxb3 {[%emt 0:00:29]} Rh8+ {[%emt 0:00:00]} 45. Kg4 {[%emt 0:00:36]} Bd6 {[%emt 0:00:00]} 46. Rf5+ {[%emt 0:01:20]} Ke7 {[%emt 0:00:00]} 47. Bc4 {[%emt 0:03:32]} Rh2 {[%emt 0:00:00]} 48. b3 {[%emt 0:00:04]} Rg2 {[%emt 0:00:32]} 49. Rf7+ {[%emt 0:00:08]} Ke8 {[%emt 0:00:00]} 50. Rf3 {[%emt 0:00:12]} Rg1 {[%emt 0:01:26]} 51. Kh4 {[%emt 0:01:02]} Bb4 {[%emt 0:02:10]} 52. Kg5 {[%emt 0:01:13]} Bd2+ {[%emt 0:00:56]} 53. Kf5 {[%emt 0:00:25]} Kd7 {[%emt 0:00:20]} 54. Ke5 {[%emt 0:02:41]} Be1 {[%emt 0:00:47]} 55. g4 {[%emt 0:01:00]} Kc6 {[%emt 0:02:08]} 56. Be6 {[%emt 0:01:49]} Kc5 {[%emt 0:02:17]} 57. Kf6 {[%emt 0:05:44]} Bh4+ {[%emt 0:00:00]} 58. Kf5 {[%emt 0:00:07]} Kb4 {[%emt 0:00:00]} 59. Bc4 {[%emt 0:01:47]} Kc3 {[%emt 0:00:30]} 60. Rh3 {[%emt 0:00:00]} Bd8 {[%emt 0:00:54]} 61. Rh8 {[%emt 0:01:24]} Be7 {[%emt 0:01:16]} 62. Rg8 {[%emt 0:00:28]} Rf1+ {[%emt 0:00:32]} 63. Ke6 {[%emt 0:00:16]} Bh4 {[%emt 0:02:10]} 64. g5 {[%emt 0:00:37]} Rg1 {[%emt 0:00:41]} 65. g6 {[%emt 0:00:24]} Re1+ {[%emt 0:02:37]} 66. Kf5 {[%emt 0:02:39]} Rg1 {[%emt 0:01:35]} 67. g7 {[%emt 0:01:38]} Rf1+ {[%emt 0:00:00]} 68. Ke6 {[%emt 0:00:46]} Re1+ {[%emt 0:01:22]} 69. Kf7 {[%emt 0:01:22]} Rf1+ {[%emt 0:00:00]} 70. Kg6 {[%emt 0:00:13]} Rg1+ {[%emt 0:01:05]} 71. Kh7 {[%emt 0:01:05]} Bf6 {[%emt 0:00:00]} 72. b4 {[%emt 0:00:10]} Rh1+ {[%emt 0:00:00]} 73. Kg6 {[%emt 0:00:05]} Bxg7 {[%emt 0:00:00]} 74. Rxg7 {[%emt 0:00:28]} Kxb4 {[%emt 0:00:00]} 75. Kf5 {[%emt 0:01:27]} Kc3 {[%emt 0:01:33]} 76. Rg4 {[%emt 0:01:32]} Re1 {[%emt 0:00:00]} 77. Re4 {[%emt 0:00:13]} Rh1 {[%emt 0:00:00]} 78. Ke5 {[%emt 0:00:47]} Rh5+ {[%emt 0:00:00]} 79. Kd6 {[%emt 0:00:09]} Rh6+ {[%emt 0:00:00]} 80. Kd5 {[%emt 0:00:11]} Rh5+ {[%emt 0:00:00]} 81. Re5 {[%emt 0:00:08]} Rh1 {[%emt 0:00:00]} 82. Kc5 {[%emt 0:00:16]} Rg1 {[%emt 0:00:00]} 83. Rd5 {[%emt 0:00:55]} Rg4 {[%emt 0:00:00]} 84. Bb5 {[%emt 0:00:30]} Rg8 {[%emt 0:00:00]} 85. Rd6 {[%emt 0:00:25]} Rg5+ {[%emt 0:00:18]} 86. Kb6 {[%emt 0:00:07]} Rh5 {[%emt 0:01:07]} 87. Ka5 {[%emt 0:00:34]} Rc5 {[%emt 0:00:33]} 88. Kb6 {[%emt 0:00:24]} Rg5 {[%emt 0:00:09]} 89. Rc6+ {[%emt 0:00:02]} Kd2 {[%emt 0:00:16]} 90. Ka5 {[%emt 0:02:37]} Re5 {[%emt 0:05:13]} 91. Kb4 {[%emt 0:00:00]} Ke3 {[%emt 0:00:11]} 92. Kc4 {[%emt 0:00:00]} Re7 {[%emt 0:00:18]} 93. Rc8 {[%emt 0:00:00]} 1-0

[Event "44th Chess Olympiad Open 2022"]
[Site "Chennai"]
[Date "2022.08.09"]
[Round "11.25"]
[White "Petursson, Margeir"]
[Black "Georgiev, Todor"]
[Result "1-0"]
[ECO "A36"]
[WhiteElo "2450"]
[BlackElo "2272"]
[Annotator "RC"]
[PlyCount "63"]
[EventDate "2022.07.29"]
[EventType "team-tourn"]
[EventCountry "IND"]
[SourceTitle "playchess.com"]
[Source "ChessBase"]
[SourceQuality "1"]
[WhiteTeam "Iceland"]
[BlackTeam "Bulgaria"]
[WhiteTeamCountry "ISL"]
[BlackTeamCountry "BUL"]
[TimeControl "40/5400+30:1800+30"]

1. c4 {[%emt 0:00:04]} g6 {[%emt 0:00:19]} 2. Nc3 {[%emt 0:00:08]} Bg7 {[%emt 0:00:10]} 3. g3 {[%emt 0:00:09]} e5 {[%emt 0:04:34]} 4. Bg2 {[%emt 0:03:19]} Ne7 {[%emt 0:00:18]} 5. e3 {[%emt 0:02:06]} O-O {[%emt 0:03:41]} 6. Nge2 {[%emt 0:00:27]} c5 {[%emt 0:04:27]} 7. a3 {[%emt 0:04:08]} Nbc6 {[%emt 0:03:11]} 8. d3 {[%emt 0:01:39]} d6 {[%emt 0:00:52]} 9. O-O {[%emt 0:05:58]} Be6 {[%emt 0:03:56]} 10. Nd5 {[%emt 0:02:10]} Rb8 {[%emt 0:15:29]} 11. Nec3 {[%emt 0:07:00]} a6 {[%emt 0:00:43]} 12. b4 {[%emt 0:13:02]} b5 {[%emt 0:06:58]} 13. Rb1 {[%emt 0:10:36]} bxc4 {[%emt 0:11:23]} 14. dxc4 {[%emt 0:01:58]} cxb4 {[%emt 0:04:00]} 15. axb4 {[%emt 0:00:09]} Bxd5 {[%emt 0:00:38]} 16. cxd5 {[%emt 0:00:25]} Nxb4 {[%emt 0:00:40]} 17. Qa4 {[%emt 0:01:40]} a5 {[%emt 0:04:32]} 18. Bd2 {[%emt 0:01:03]} Qb6 {[%emt 0:08:27]} 19. Na2 {[%emt 0:09:17]} Qb5 {[%emt 0:03:23]} 20. Qxb5 {[%emt 0:00:55]} Rxb5 {[%emt 0:00:02]} 21. Nxb4 {[%emt 0:00:11]} axb4 {[%emt 0:02:21]} 22. Rxb4 {[%emt 0:01:01]} Rc5 {[%emt 0:03:25]} 23. e4 {[%emt 0:02:10]} Rc2 {[%emt 0:01:42]} 24. Be3 {[%emt 0:07:50]} f5 {[%emt 0:02:31]} 25. Rb7 {[%emt 0:02:02]} f4 {[%emt 0:05:15]} 26. Bc1 {[%emt 0:07:05]} Nc8 {[%emt 0:07:12]} 27. Bh3 {[%emt 0:01:42]} h5 {[%emt 0:02:12]} 28. Ba3 {[%emt 0:02:12]} Rc3 {[%emt 0:01:04]} 29. Bb2 {[%emt 0:03:59]} Rc4 {[%emt 0:00:47]} 30. Rc1 {[%emt 0:01:24]} Rxc1+ {[%emt 0:00:09]} 31. Bxc1 {[%emt 0:00:03]} f3 {[%emt 0:00:47]} 32. Bg5 {[%emt 0:04:14]} 1-0